fUST/lending_fUST_20250831
["ID","MTS","AMOUNT","RATE_DAILY","PERIOD"]
[382474610,1756641050109,-480.0,0.00017799,2]
[382474611,1756641050119,-480.0,0.00017799,2]
[382474612,1756641050128,-480.0,0.00017799,2]
[382474613,1756641050137,-151.0,0.00017799,2]
[382474614,1756641050146,-923.92,0.00017799,2]
[382474615,1756641050155,-480.0,0.00017799,2]
[382474616,1756641050163,-480.0,0.00017799,2]
[382474617,1756641050172,-1480.17,0.00017799,2]
[382474618,1756641050182,-882.2,0.00017799,2]
[382474619,1756641050191,-555.84,0.00017799,2]
[382474620,1756641050200,-480.0,0.00017799,2]
[382474621,1756641050209,-151.0,0.00017799,2]
[382474622,1756641050218,-2155.02,0.00017799,2]
[382474623,1756641050226,-1000.0,0.00017799,2]
[382474624,1756641050236,-510.7510522,0.00017799,2]
[382474625,1756641050245,-3455.94,0.00017799,2]
[382474626,1756641050254,-706.43,0.00017799,2]
[382474627,1756641050262,-480.0,0.00017799,2]
[382474628,1756641050271,-481.3470306,0.00017799,2]
[382474629,1756641050280,-740.8,0.00017799,2]
[382474630,1756641050289,-480.0,0.00017799,2]
[382474631,1756641050298,-151.0,0.00017799,2]
[382474632,1756641050307,-480.0,0.00017799,2]
[382474633,1756641050316,-151.0,0.00017799,2]
[382474634,1756641050325,-151.343345,0.00017799,2]
[382474635,1756641050334,-480.0,0.00017799,2]
[382474636,1756641050344,-538.7,0.00017799,2]
[382474637,1756641050353,-590.8,0.00017799,2]
[382474638,1756641050362,-151.0,0.00017799,2]
[382474639,1756641050372,-151.0,0.00017799,2]
[382474640,1756641050381,-1473.14,0.00017799,2]
[382474641,1756641050390,-481.78518685,0.00017799,2]
[382474642,1756641050400,-151.0,0.00017799,2]
[382474643,1756641050414,-151.0,0.00017799,2]
[382474644,1756641050423,-410.49221079,0.00017799,2]
[382474645,1756641050433,-480.0,0.00017799,2]
[382474646,1756641050442,-1129.79,0.00017799,2]
[382474647,1756641050452,-480.0,0.00017799,2]
[382474648,1756641050460,-151.158634,0.00017799,2]
[382474649,1756641050468,-500.74,0.00017799,2]
[382474650,1756641050477,-480.0,0.00017799,2]
[382474651,1756641050638,-151.0,0.00017799,2]
[382474652,1756641050648,-151.0,0.00017799,2]
[382474653,1756641050658,-151.0,0.00017799,2]
[382474654,1756641050667,-260.86270022,0.00017799,2]
[382474655,1756641050677,-504.98,0.00017799,2]
[382474656,1756641050686,-480.0,0.00017799,2]
[382474657,1756641050696,-480.0,0.00017799,2]
[382474658,1756641050706,-480.0,0.00017799,2]
[382474659,1756641050715,-2642.58,0.00017799,2]
[382474660,1756641050725,-480.0,0.00017799,2]
[382474661,1756641050734,-586.76,0.00017799,2]
[382474662,1756641050743,-151.0,0.00017799,2]
[382474663,1756641050752,-184.038744,0.00017799,2]
[382474664,1756641050762,-156.946248,0.00017799,2]
[382474665,1756641050772,-480.0,0.00017799,2]
[382474666,1756641050781,-156.946248,0.00017799,2]
[382474667,1756641050790,-1092.28,0.00017799,2]
[382474668,1756641050800,-151.0,0.00017799,2]
[382474669,1756641050809,-156.946248,0.00017799,2]
[382474670,1756641050819,-619.536546,0.00017799,2]
[382474671,1756641050828,-156.946248,0.00017799,2]
[382474672,1756641050838,-151.0,0.00017799,2]
[382474673,1756641050847,-770.34,0.00017799,2]
[382474674,1756641050856,-178.660336,0.00017799,2]
[382474675,1756641050865,-619.536546,0.00017799,2]
[382474676,1756641050874,-619.536546,0.00017799,2]
[382474677,1756641050883,-619.536546,0.00017799,2]
[382474678,1756641050892,-151.0,0.000178,2]
[382474679,1756641050901,-151.0,0.000178,2]
[382474680,1756641050910,-151.0,0.000178,2]
[382474681,1756641050919,-151.0,0.000178,2]
[382474682,1756641050928,-151.0,0.000178,2]
[382474683,1756641050937,-500.0,0.00017801,2]
[382474684,1756641050946,-151.0,0.00017801,2]
[382474685,1756641050956,-239.35076144,0.00017801,2]
[382474686,1756641050966,-1477.0,0.00017801,2]
[382474687,1756641050976,-500.0,0.00017801,2]
[382474688,1756641050985,-500.0,0.00017801,2]
[382474689,1756641050995,-500.0,0.00017801,2]
[382474690,1756641051005,-500.0,0.00017801,2]
[382474691,1756641051015,-500.0,0.00017801,2]
[382474692,1756641051024,-151.0,0.00017801,2]
[382474693,1756641051034,-151.0,0.00017801,2]
[382474694,1756641051043,-151.0,0.00017801,2]
[382474695,1756641051053,-500.0,0.00017801,2]
[382474696,1756641051063,-151.0,0.00017801,2]
[382474697,1756641051073,-480.0,0.00017801,2]
[382474698,1756641051083,-480.0,0.00017801,2]
[382474699,1756641051092,-151.0,0.00017801,2]
[382474700,1756641051101,-154.702727,0.00017801,2]
[382474701,1756641051111,-151.0,0.00017801,2]
[382474702,1756641051120,-270.445229,0.00017801,2]
[382474703,1756641051129,-151.0,0.00017801,2]
[382474704,1756641051138,-151.0,0.00017801,2]
[382474705,1756641051148,-500.0,0.00017801,2]
[382474706,1756641051157,-2898.88,0.00017801,2]
[382474707,1756641051166,-1737.4,0.00017801,2]
[382474708,1756641051175,-930.35,0.00017801,2]
[382474709,1756641051184,-1216.45,0.00017801,2]
[382474710,1756641051193,-1059.09,0.00017801,2]
[382474711,1756641051203,-480.0,0.00017801,2]
[382474712,1756641051212,-1223.71,0.00017801,2]
[382474713,1756641051222,-1733.66,0.00017801,2]
[382474714,1756641051231,-1688.46,0.00017801,2]
[382474715,1756641051240,-185.876676,0.00017801,2]
[382474716,1756641051248,-831.83,0.00017801,2]
[382474717,1756641051257,-185.876676,0.00017801,2]
[382474718,1756641051265,-185.876676,0.00017801,2]
[382474719,1756641051274,-185.876676,0.00017801,2]
[382474720,1756641051283,-151.55384,0.00017801,2]
[382474721,1756641051292,-496.54,0.00017801,2]
[382474722,1756641051301,-156.167908,0.00017801,2]
[382474723,1756641051315,-151.0,0.00017801,2]
[382474724,1756641051324,-858.4,0.00017801,2]
[382474725,1756641051334,-1076.16,0.00017801,2]
[382474726,1756641051342,-480.0,0.00017801,2]
[382474727,1756641051351,-167.076088,0.00017801,2]
[382474728,1756641051360,-480.0,0.00017801,2]
[382474729,1756641051369,-586.48,0.00017801,2]
[382474730,1756641051378,-961.35,0.00017801,2]
[382474731,1756641051387,-480.0,0.00017801,2]
[382474732,1756641051396,-480.0,0.00017801,2]
[382474733,1756641051407,-480.0,0.00017801,2]
[382474734,1756641051417,-480.0,0.00017801,2]
[382474735,1756641051427,-1399.32,0.00017801,2]
[382474736,1756641051436,-1317.7,0.00017801,2]
[382474737,1756641051446,-580.87,0.00017801,2]
[382474738,1756641051455,-872.85,0.00017801,2]
[382474739,1756641051464,-480.0,0.00017801,2]
[382474740,1756641051473,-480.0,0.00017801,2]
[382474741,1756641051483,-480.0,0.00017801,2]
[382474742,1756641051492,-1284.0,0.00017801,2]
[382474743,1756641051500,-480.0,0.00017801,2]
[382474744,1756641051510,-2163.1,0.00017801,2]
[382474745,1756641051519,-504.7,0.00017801,2]
[382474746,1756641051527,-480.0,0.00017801,2]
[382474747,1756641051536,-480.0,0.00017801,2]
[382474748,1756641051546,-480.0,0.00017801,2]
[382474749,1756641051554,-995.45,0.00017801,2]
[382474750,1756641051563,-618.42,0.00017801,2]
[382474751,1756641051573,-674.02,0.00017802,2]
[382474752,1756641051592,-480.0,0.00017802,2]
[382474753,1756641051601,-480.0,0.00017802,2]
[382474754,1756641051610,-480.0,0.00017802,2]
[382474755,1756641051619,-480.0,0.00017802,2]
[382474756,1756641051628,-480.0,0.00017802,2]
[382474757,1756641051637,-297.60048262,0.00017802,2]
[382474758,1756641051646,-684.59,0.00017802,2]
[382474759,1756641051654,-759.74,0.00017802,2]
[382474760,1756641051663,-789.46,0.00017802,2]
[382474761,1756641051672,-480.0,0.00017802,2]
[382474762,1756641051681,-1587.95,0.00017802,2]
[382474763,1756641051690,-480.0,0.00017802,2]
[382474764,1756641051700,-1551.5,0.00017802,2]
[382474765,1756641051708,-480.0,0.00017802,2]
[382474766,1756641051717,-480.0,0.00017802,2]
[382474767,1756641051725,-480.0,0.00017802,2]
[382474768,1756641051734,-1550.77,0.00017802,2]
[382474769,1756641051742,-480.0,0.00017802,2]
[382474770,1756641051751,-480.0,0.00017802,2]
[382474771,1756641051760,-480.0,0.00017802,2]
[382474772,1756641051769,-480.0,0.00017802,2]
[382474773,1756641051777,-836.71,0.00017802,2]
[382474774,1756641051786,-480.0,0.00017802,2]
[382474775,1756641051796,-480.0,0.00017802,2]
[382474776,1756641051806,-480.0,0.00017802,2]
[382474777,1756641051815,-480.0,0.00017802,2]
[382474778,1756641051824,-607.24,0.00017802,2]
[382474779,1756641051833,-480.0,0.00017802,2]
[382474780,1756641051842,-480.0,0.00017802,2]
[382474781,1756641051851,-480.0,0.00017802,2]
[382474782,1756641051868,-572.28,0.00017802,2]
[382474783,1756641051877,-480.0,0.00017802,2]
[382474784,1756641051886,-572.76,0.00017802,2]
[382474785,1756641051895,-324.0913876,0.00017802,2]
[382474786,1756641051904,-480.0,0.00017802,2]
[382474787,1756641051913,-480.0,0.00017802,2]
[382474788,1756641051922,-175.10694815,0.00017802,2]
[382474789,1756641051931,-480.0,0.00017802,2]
[382474790,1756641051939,-881.51,0.00017802,2]
[382474791,1756641051950,-571.99,0.00017802,2]
[382474792,1756641051958,-581.67,0.00017802,2]
[382474793,1756641051967,-480.0,0.00017802,2]
[382474794,1756641051976,-519.29,0.00017802,2]
[382474795,1756641051985,-480.0,0.00017802,2]
[382474796,1756641051994,-480.0,0.00017802,2]
[382474797,1756641052003,-480.0,0.00017802,2]
[382474798,1756641052013,-480.0,0.00017802,2]
[382474799,1756641052022,-1003.54527382,0.00017802,2]
[382474800,1756641052030,-480.0,0.00017802,2]
[382474801,1756641052039,-480.0,0.00017802,2]
[382474802,1756641052048,-480.0,0.00017802,2]
[382474803,1756641052058,-480.0,0.00017802,2]
[382474804,1756641052067,-480.0,0.00017802,2]
[382474805,1756641052075,-480.0,0.00017802,2]
[382474806,1756641052083,-480.0,0.00017802,2]
[382474807,1756641052091,-480.0,0.00017802,2]
[382474808,1756641052100,-480.0,0.00017802,2]
[382474809,1756641052107,-480.0,0.00017802,2]
[382474810,1756641052114,-480.0,0.00017802,2]
[382474811,1756641052120,-867.44,0.00017802,2]
[382474812,1756641052127,-480.0,0.00017802,2]
[382474813,1756641052134,-503.8,0.00017802,2]
[382474814,1756641052142,-966.64,0.00017802,2]
[382474815,1756641052151,-480.73,0.00017802,2]
[382474816,1756641052160,-480.0,0.00017802,2]
[382474817,1756641052169,-480.0,0.00017802,2]
[382474818,1756641052178,-480.0,0.00017802,2]
[382474819,1756641052187,-659.58,0.00017802,2]
[382474820,1756641052197,-500.0,0.00017802,2]
[382474821,1756641052208,-480.0,0.00017802,2]
[382474822,1756641052217,-480.0,0.00017802,2]
[382474823,1756641052227,-480.0,0.00017802,2]
[382474824,1756641052236,-480.0,0.00017802,2]
[382474825,1756641052246,-405.51587298,0.00017802,2]
[382474826,1756641052255,-480.0,0.00017802,2]
[382474827,1756641052264,-480.0,0.00017802,2]
[382474828,1756641052273,-1079.7,0.00017802,2]
[382474829,1756641052283,-480.0,0.00017802,2]
[382474830,1756641052292,-480.0,0.00017802,2]
[382474831,1756641052301,-480.0,0.00017802,2]
[382474832,1756641052310,-480.0,0.00017802,2]
[382474833,1756641052319,-1260.41,0.00017802,2]
[382474834,1756641052328,-480.0,0.00017802,2]
[382474835,1756641052336,-480.0,0.00017802,2]
[382474836,1756641052345,-582.99,0.00017802,2]
[382474837,1756641052354,-564.21,0.00017802,2]
[382474838,1756641052363,-480.0,0.00017802,2]
[382474839,1756641052372,-1173.05,0.00017802,2]
[382474840,1756641052381,-480.0,0.00017802,2]
[382474841,1756641052390,-585.33,0.00017802,2]
[382474842,1756641052400,-754.46,0.00017802,2]
[382474843,1756641052412,-480.0,0.00017802,2]
[382474844,1756641052422,-480.0,0.00017802,2]
[382474845,1756641052432,-480.0,0.00017802,2]
[382474846,1756641052441,-921.53,0.00017802,2]
[382474847,1756641052451,-480.0,0.00017802,2]
[382474848,1756641052460,-151.0,0.00017802,2]
[382474849,1756641052469,-480.0,0.00017802,2]
[382474850,1756641052478,-151.0,0.00017802,2]
[382474851,1756641052487,-151.0,0.00017802,2]
[382474852,1756641052497,-480.0,0.00017802,2]
[382474853,1756641052506,-480.69081321,0.00017802,2]
[382474854,1756641052515,-480.0,0.00017802,2]
[382474855,1756641052524,-480.0,0.00017802,2]
[382474856,1756641052533,-620.5,0.00017802,2]
[382474857,1756641052543,-480.64942555,0.00017802,2]
[382474858,1756641052552,-480.0,0.00017802,2]
[382474859,1756641052561,-480.0,0.00017802,2]
[382474860,1756641052570,-723.8,0.00017802,2]
[382474861,1756641052578,-624.76,0.00017802,2]
[382474862,1756641052587,-480.0,0.00017802,2]
[382474863,1756641052595,-1696.18,0.00017802,2]
[382474864,1756641052604,-480.0,0.00017802,2]
[382474865,1756641052612,-481.39767338,0.00017802,2]
[382474866,1756641052622,-591.58,0.00017802,2]
[382474867,1756641052631,-910.94,0.00017802,2]
[382474868,1756641052640,-480.0,0.00017802,2]
[382474869,1756641052650,-480.0,0.00017802,2]
[382474870,1756641052658,-480.0,0.00017802,2]
[382474871,1756641052667,-480.0,0.00017802,2]
[382474872,1756641052676,-558.63,0.00017802,2]
[382474873,1756641052685,-619.536546,0.00017802,2]
[382474874,1756641052694,-151.0,0.00017802,2]
[382474875,1756641052703,-619.536546,0.00017802,2]
[382474876,1756641052712,-619.536546,0.00017802,2]
[382474877,1756641052721,-619.536546,0.00017802,2]
[382474878,1756641052731,-1598.01281322,0.00017831,2]
[382474879,1756641052739,-242.0,0.00017831,2]
[382474880,1756641052748,-168.946,0.00017832,2]
[382474881,1756641052757,-693.0,0.00017876,2]
[382474882,1756641052766,-151.0,0.00017876,2]
[382474883,1756641052775,-151.0,0.00017876,2]
[382474884,1756641052784,-151.0,0.00017876,2]
[382474885,1756641052793,-151.0,0.00017876,2]
[382474886,1756641052802,-151.0,0.00017876,2]
[382474887,1756641052812,-151.0,0.00017876,2]
[382474888,1756641052821,-162.943975,0.0001789,15]
[382474889,1756641052830,-151.0,0.000179,2]
[382474890,1756641052840,-151.0,0.000179,2]
[382474891,1756641052849,-151.0,0.000179,2]
[382474892,1756641052992,-151.0,0.000179,2]
[382474893,1756641053003,-605.84,0.00017901,2]
[382474894,1756641053012,-598.65,0.00017901,2]
[382474895,1756641053022,-902.36,0.00017901,2]
[382474896,1756641053031,-565.23,0.00017901,2]
[382474897,1756641053040,-568.55,0.00017901,2]
[382474898,1756641053050,-480.0,0.00017901,2]
[382474899,1756641053059,-906.01,0.00017901,2]
[382474900,1756641053068,-1167.98,0.00017901,2]
[382474901,1756641053078,-599.13,0.00017901,2]
[382474902,1756641053087,-480.0,0.00017901,2]
[382474903,1756641053096,-1359.56,0.00017901,2]
[382474904,1756641053106,-480.0,0.00017901,2]
[382474905,1756641053115,-480.0,0.00017901,2]
[382474906,1756641053124,-480.0,0.00017901,2]
[382474907,1756641053133,-501.15,0.00017901,2]
[382474908,1756641053143,-480.0,0.00017901,2]
[382474909,1756641053152,-481.7167146,0.00017901,2]
[382474910,1756641053166,-715.88,0.00017901,2]
[382474911,1756641053175,-151.0,0.00017901,2]
[382474912,1756641053186,-151.0,0.00017901,2]
[382474913,1756641053195,-151.83901,0.00017901,2]
[382474914,1756641053205,-151.0,0.00017901,2]
[382474915,1756641053213,-151.0,0.00017901,2]
[382474916,1756641053223,-212.672836,0.00017901,2]
[382474917,1756641053231,-151.0,0.00017901,2]
[382474918,1756641053240,-1000.0,0.00017901,2]
[382474919,1756641053250,-1000.0,0.00017901,2]
[382474920,1756641053259,-1000.0,0.00017901,2]
[382474921,1756641053268,-156.946248,0.00017901,2]
[382474922,1756641053278,-1000.0,0.00017901,2]
[382474923,1756641053287,-1000.0,0.00017901,2]
[382474924,1756641053297,-1000.0,0.00017901,2]
[382474925,1756641053306,-1000.0,0.00017901,2]
[382474926,1756641053315,-1000.0,0.00017901,2]
[382474927,1756641053325,-156.946248,0.00017901,2]
[382474928,1756641053336,-1000.0,0.00017901,2]
[382474929,1756641053346,-1000.0,0.00017901,2]
[382474930,1756641053355,-1000.0,0.00017901,2]
[382474931,1756641053365,-1000.0,0.00017901,2]
[382474932,1756641053374,-156.946248,0.00017901,2]
[382474933,1756641053384,-156.946248,0.00017901,2]
[382474934,1756641053394,-1000.0,0.00017901,2]
[382474935,1756641053408,-1000.0,0.00017901,2]
[382474936,1756641053422,-1000.0,0.00017901,2]
[382474937,1756641053432,-1000.0,0.00017901,2]
[382474938,1756641053441,-1000.0,0.00017901,2]
[382474939,1756641053451,-1000.0,0.00017901,2]
[382474940,1756641053460,-1000.0,0.00017901,2]
[382474941,1756641053468,-1000.0,0.00017901,2]
[382474942,1756641053477,-1000.0,0.00017901,2]
[382474943,1756641053487,-1000.0,0.00017901,2]
[382474944,1756641053497,-1000.0,0.00017901,2]
[382474945,1756641053505,-1000.0,0.00017901,2]
[382474946,1756641053513,-26287.3002876,0.00017902,2]
[382474947,1756641053522,-151.0,0.00017902,2]
[382474948,1756641053531,-151.0,0.00017902,2]
[382474949,1756641053539,-151.0,0.00017902,2]
[382474950,1756641053548,-151.0,0.00017902,2]
[382474951,1756641053556,-151.0,0.00017902,2]
[382474952,1756641053565,-151.0,0.00017902,2]
[382474953,1756641053575,-151.0,0.00017902,2]
[382474954,1756641053585,-480.0,0.00017903,2]
[382474955,1756641053594,-480.0,0.00017903,2]
[382474956,1756641053602,-480.0,0.00017903,2]
[382474957,1756641053611,-480.0,0.00017903,2]
[382474958,1756641053619,-487.56151785,0.00017903,2]
[382474959,1756641053628,-731.05,0.00017903,2]
[382474960,1756641053636,-642.22,0.00017903,2]
[382474961,1756641053645,-480.0,0.00017903,2]
[382474962,1756641053653,-550.87,0.00017903,2]
[382474963,1756641053662,-200.0,0.00017903,3]
[382474964,1756641053671,-200.0,0.00017903,3]
[382474965,1756641053680,-200.0,0.00017903,3]
[382474966,1756641053689,-200.0,0.00017903,3]
[382474967,1756641053697,-200.0,0.00017903,3]
[382474968,1756641053707,-151.0,0.00017903,2]
[382474969,1756641053715,-160.0,0.00017926,2]
[382474970,1756641053724,-160.0,0.00017928,2]
[382474971,1756641053733,-530.02580203,0.00017928,2]
[382474972,1756641053741,-160.0,0.00017928,2]
[382474973,1756641053750,-417.15472785,0.00017928,2]
[382474974,1756641053758,-217.4012883,0.00017928,2]
[382474975,1756641053767,-160.0,0.00017928,2]
[382474976,1756641053776,-160.0,0.00017928,2]
[382474977,1756641053785,-160.0,0.00017928,2]
[382474978,1756641053795,-160.0,0.00017928,2]
[382474979,1756641053804,-11364.23969824,0.00017929,2]
[382474980,1756641053813,-160.0,0.0001793,2]
[382474981,1756641053822,-425.75173308,0.0001793,2]
[382474982,1756641053832,-160.0,0.0001793,2]
[382474983,1756641053842,-232.78794292,0.0001793,2]
[382474984,1756641053851,-845.95363151,0.0001793,2]
[382474985,1756641053860,-188.24652281,0.0001793,2]
[382474986,1756641053869,-168.0,0.00017961,2]
[382474987,1756641053878,-13704.06711517,0.00017976,2]
[382474988,1756641053888,-261.0,0.00017983,2]
[382474989,1756641053896,-31087.29876407,0.00018,2]
[382474990,1756641053905,-7360.81993649,0.00018,2]
[382474991,1756641053914,-23104.43973852,0.00018,2]
[382474992,1756641053923,-151.0,0.00018,2]
[382474993,1756641053932,-151.0,0.00018,2]
[382474994,1756641053941,-151.0,0.00018,2]
[382474995,1756641053950,-151.0,0.00018,2]
[382474996,1756641053959,-151.0,0.00018,2]
[382474997,1756641053968,-151.0,0.00018,2]
[382474998,1756641053978,-151.0,0.00018,2]
[382474999,1756641053987,-151.0,0.00018,2]
[382475000,1756641053996,-266.07364189,0.00018,2]
[382475001,1756641054006,-151.0,0.00018,2]
[382475002,1756641054015,-160.424535,0.00018,2]
[382475003,1756641054026,-184.400329,0.00018,2]
[382475004,1756641054035,-151.0,0.00018,2]
[382475005,1756641054044,-151.0,0.00018,2]
[382475006,1756641054053,-185.876676,0.00018,2]
[382475007,1756641054064,-185.876676,0.00018,2]
[382475008,1756641054073,-185.876676,0.00018,2]
[382475009,1756641054082,-185.876676,0.00018,2]
[382475010,1756641054092,-151.123548,0.00018,2]
[382475011,1756641054101,-916.14,0.00018,2]
[382475012,1756641054110,-693.0,0.0001805,2]
[382475013,1756641054119,-162.943975,0.00018051,3]
[382475014,1756641054129,-229.67916901,0.00018062,2]
[382475015,1756641054138,-1708.64,0.0001807,2]
[382475016,1756641054147,-480.0,0.0001807,2]
[382475017,1756641054156,-1055.11,0.0001807,2]
[382475018,1756641054165,-1347.16,0.0001807,2]
[382475019,1756641054174,-3137.53,0.0001807,2]
[382475020,1756641054184,-1441.45,0.0001807,2]
[382475021,1756641054193,-3652.98,0.0001807,2]
[382475022,1756641054203,-1320.13,0.0001807,2]
[382475023,1756641054213,-480.0,0.0001807,2]
[382475024,1756641054222,-500.0,0.00018071,2]
[382475025,1756641054232,-480.0,0.00018071,2]
[382475026,1756641054241,-480.0,0.00018071,2]
[382475027,1756641054251,-480.0,0.00018071,2]
[382475028,1756641054260,-480.0,0.00018071,2]
[382475029,1756641054269,-1519.76,0.00018071,2]
[382475030,1756641054279,-705.52,0.00018071,2]
[382475031,1756641054288,-270.60387828,0.00018071,2]
[382475032,1756641054298,-550.24,0.00018071,2]
[382475033,1756641054307,-480.0,0.00018071,2]
[382475034,1756641054317,-480.0,0.00018071,2]
[382475035,1756641054327,-480.0,0.00018071,2]
[382475036,1756641054337,-698.71,0.00018071,2]
[382475037,1756641054346,-480.0,0.00018071,2]
[382475038,1756641054356,-4311.91,0.00018071,2]
[382475039,1756641054365,-547.76,0.00018071,2]
[382475040,1756641054375,-648.0,0.00018071,2]
[382475041,1756641054386,-480.0,0.00018071,2]
[382475042,1756641054395,-480.0,0.00018071,2]
[382475043,1756641054407,-480.0,0.00018071,2]
[382475044,1756641054418,-480.0,0.00018071,2]
[382475045,1756641054427,-480.0,0.00018071,2]
[382475046,1756641054436,-480.0,0.00018071,2]
[382475047,1756641054446,-1144.41,0.00018071,2]
[382475048,1756641054455,-480.0,0.00018071,2]
[382475049,1756641054464,-829.2,0.00018071,2]
[382475050,1756641054474,-1165.56,0.00018071,2]
[382475051,1756641054483,-1881.76,0.00018071,2]
[382475052,1756641054492,-480.0,0.00018071,2]
[382475053,1756641054501,-480.0,0.00018071,2]
[382475054,1756641054510,-474.17441139,0.00018071,2]
[382475055,1756641054520,-1023.78,0.00018071,2]
[382475056,1756641054529,-480.0,0.00018071,2]
[382475057,1756641054539,-1504.63,0.00018071,2]
[382475058,1756641054548,-480.0,0.00018071,2]
[382475059,1756641054557,-671.18,0.00018071,2]
[382475060,1756641054567,-480.0,0.00018071,2]
[382475061,1756641054576,-482.32,0.00018071,2]
[382475062,1756641054585,-1531.8,0.00018071,2]
[382475063,1756641054595,-871.46,0.00018071,2]
[382475064,1756641054604,-610.71,0.00018071,2]
[382475065,1756641054613,-480.0,0.00018071,2]
[382475066,1756641054622,-480.0,0.00018071,2]
[382475067,1756641054632,-480.0,0.00018071,2]
[382475068,1756641054641,-957.25,0.00018071,2]
[382475069,1756641054651,-1488.17,0.00018071,2]
[382475070,1756641054660,-549.82,0.00018071,2]
[382475071,1756641054669,-6237.47,0.00018071,2]
[382475072,1756641054678,-1032.08,0.00018071,2]
[382475073,1756641054688,-480.0,0.00018071,2]
[382475074,1756641054697,-1545.45,0.00018071,2]
[382475075,1756641054706,-1278.6,0.00018071,2]
[382475076,1756641054716,-793.35,0.00018071,2]
[382475077,1756641054725,-744.7,0.00018071,2]
[382475078,1756641054734,-1247.13,0.00018071,2]
[382475079,1756641054743,-480.0,0.00018071,2]
[382475080,1756641054752,-4987.13,0.00018071,2]
[382475081,1756641054762,-3024.61,0.00018071,2]
[382475082,1756641054771,-418.43470895,0.00018071,2]
[382475083,1756641054780,-480.0,0.00018071,2]
[382475084,1756641054789,-480.0,0.00018071,2]
[382475085,1756641054798,-4192.05,0.00018071,2]
[382475086,1756641054807,-480.0,0.00018071,2]
[382475087,1756641054816,-480.0,0.00018071,2]
[382475088,1756641054826,-1337.74,0.00018071,2]
[382475089,1756641054835,-480.0,0.00018071,2]
[382475090,1756641054844,-151.0,0.00018071,2]
[382475091,1756641054853,-619.536546,0.00018071,2]
[382475092,1756641054862,-619.536546,0.00018071,2]
[382475093,1756641054871,-619.536546,0.00018071,2]
[382475094,1756641054880,-619.536546,0.00018071,2]
[382475095,1756641054889,-480.0,0.00018072,2]
[382475096,1756641054898,-480.0,0.00018072,2]
[382475097,1756641054907,-480.0,0.00018072,2]
[382475098,1756641054915,-480.0,0.00018072,2]
[382475099,1756641054924,-544.0,0.00018072,2]
[382475100,1756641054933,-1035.31,0.00018072,2]
[382475101,1756641054943,-480.0,0.00018072,2]
[382475102,1756641054952,-912.05,0.00018072,2]
[382475103,1756641054962,-151.0,0.00018072,2]
[382475104,1756641054971,-151.0,0.00018072,2]
[382475105,1756641054981,-2739.43,0.00018072,2]
[382475106,1756641054990,-480.0,0.00018072,2]
[382475107,1756641054999,-480.0,0.00018072,2]
[382475108,1756641055009,-1281.11,0.00018072,2]
[382475109,1756641055019,-1661.09,0.00018072,2]